bitfinex/quotes_BTCUSD_20260126
["timestamp","ask_amount","ask_price","bid_price","bid_amount"]
[1769405782984,0.05689511,87881.0,87880.0,0.22032]
[1769405783234,0.01137915,87880.0,87869.0,0.15420917]
[1769405783557,0.01137928,87879.0,87869.0,0.15420917]
[1769405783764,0.01137915,87880.0,87869.0,0.15420917]
[1769405784319,0.01137941,87878.0,87869.0,0.15420917]
[1769405784519,0.01137928,87879.0,87869.0,0.15420917]
[1769405785200,0.01137928,87879.0,87872.0,0.0012686]
[1769405785413,0.52065732,87882.0,87872.0,0.0012686]
[1769405785622,0.01137915,87880.0,87872.0,0.0012686]
[1769405785836,0.52065732,87882.0,87872.0,0.0012686]
[1769405786035,0.50927843,87882.0,87872.0,0.0012686]
[1769405786238,0.50927843,87882.0,87872.0,0.01451549]
[1769405786648,0.50927843,87882.0,87872.0,0.01551549]
[1769405787007,0.50927843,87882.0,87872.0,0.01451549]
[1769405787376,0.50927843,87882.0,87872.0,0.01551549]
[1769405787578,0.50927843,87882.0,87872.0,0.0012686]
[1769405787984,0.50927843,87882.0,87872.0,0.01552335]
[1769405788502,0.50927843,87882.0,87872.0,0.0012686]
[1769405789127,0.50927843,87882.0,87872.0,0.01779255]
[1769405793293,0.52065732,87882.0,87872.0,0.01779255]
[1769405793712,0.50927843,87882.0,87872.0,0.01779255]
[1769405794064,0.01137915,87880.0,87872.0,0.0012686]
[1769405794273,0.01137902,87881.0,87872.0,0.0012686]
[1769405795346,0.01137902,87881.0,87872.0,0.0002686]
[1769405795749,0.01137902,87881.0,87872.0,0.0012686]
[1769405796117,0.01137902,87881.0,87872.0,0.0002686]
[1769405796325,0.01137915,87880.0,87872.0,0.0012686]
[1769405796963,0.01137928,87879.0,87872.0,0.0012686]
[1769405797184,0.01137928,87879.0,87862.0,0.15427861]
[1769405797185,0.01137967,87876.0,87863.0,0.01424615]
[1769405797384,0.01137967,87876.0,87840.0,0.01165293]
[1769405797385,0.01138109,87865.0,87844.0,0.15427861]
[1769405797598,0.01138122,87864.0,87848.0,0.15427861]
[1769405797805,0.01138161,87861.0,87849.0,0.02276633]
[1769405797986,0.0682874,87864.0,87849.0,0.02276633]
[1769405798237,0.0682874,87864.0,87848.0,0.15427861]
[1769405798238,0.01138148,87862.0,87848.0,0.15427861]
[1769405798442,0.1354816,87865.0,87856.0,0.00073569]
[1769405798690,0.50927843,87866.0,87862.0,0.01]
[1769405798896,0.50927843,87872.0,87862.0,0.16427861]
[1769405799110,0.50927843,87872.0,87863.0,0.02159324]
[1769405799316,0.50927843,87872.0,87864.0,0.15427861]
[1769405799896,0.52065861,87872.0,87864.0,0.15427861]
[1769405800276,0.01138057,87869.0,87856.0,0.00046709]
[1769405800498,0.01138057,87869.0,87856.0,0.1547457]
[1769405800882,0.01138044,87870.0,87856.0,0.1547457]
[1769405801749,0.0113807,87868.0,87856.0,0.00046709]
[1769405802043,0.13548121,87868.0,87856.0,0.00046709]
[1769405802281,0.01138083,87867.0,87856.0,0.00046709]
[1769405802529,0.01138083,87867.0,87838.0,0.15427861]
[1769405802530,0.01138329,87848.0,87838.0,0.15427861]
[1769405802729,0.01138368,87845.0,87838.0,0.15432526]
[1769405802926,0.0113842,87841.0,87838.0,4.665e-05]
[1769405803087,0.06830532,87841.0,87838.0,4.665e-05]
[1769405803291,0.0113842,87841.0,87838.0,4.665e-05]
[1769405803846,0.01138433,87840.0,87831.0,0.15427861]
[1769405804159,0.01138433,87840.0,87831.0,0.15439017]
[1769405804384,0.01138446,87839.0,87831.0,0.15439017]
[1769405804721,0.01138433,87840.0,87831.0,0.15439017]
[1769405804922,0.01138433,87840.0,87838.0,0.001]
[1769405805324,0.0113842,87841.0,87831.0,0.00011156]
[1769405805530,0.01138433,87840.0,87831.0,0.00011156]
[1769405805713,0.01138433,87840.0,87831.0,0.00111156]
[1769405805910,0.01138446,87839.0,87831.0,0.00111156]
[1769405806156,0.52066263,87841.0,87831.0,0.00111156]
[1769405806157,0.52066263,87841.0,87831.0,0.00011156]
[1769405806421,0.01138433,87840.0,87831.0,0.00111156]
[1769405806583,0.50927843,87841.0,87831.0,0.00111156]
[1769405808176,0.50927843,87841.0,87831.0,0.00011156]
[1769405808400,0.50927843,87841.0,87831.0,0.00111156]
[1769405808918,0.50927843,87841.0,87831.0,0.00011156]
[1769405809121,0.50927843,87841.0,87831.0,0.00111156]
[1769405810554,0.52066263,87841.0,87831.0,0.00111156]
[1769405810789,0.50927843,87841.0,87831.0,0.00111156]
[1769405810920,0.50927843,87841.0,87831.0,0.00011156]
[1769405811141,0.52066263,87841.0,87831.0,0.00111156]
[1769405811339,0.50927843,87841.0,87831.0,0.00111156]
[1769405812303,0.0683016,87846.0,87831.0,0.00111156]
[1769405812304,0.50927843,87850.0,87841.0,0.01]
[1769405812501,0.01138239,87855.0,87842.0,0.15427861]
[1769405812502,0.18630252,87854.0,87842.0,0.15427861]
[1769405812702,0.01138278,87852.0,87842.0,0.15427861]
[1769405812848,0.52066121,87852.0,87842.0,0.15427861]
[1769405813256,0.01138303,87850.0,87842.0,0.15427861]
[1769405813458,0.01748664,87844.0,87831.0,0.00111156]
[1769405813737,0.52066263,87841.0,87831.0,0.00111156]
[1769405813915,0.52066263,87841.0,87831.0,0.00011156]
[1769405813916,0.50927843,87841.0,87831.0,0.00011156]
[1769405814741,0.01138329,87848.0,87833.0,0.15427861]
[1769405814871,0.0143603,87847.0,87836.0,0.85446047]
[1769405815078,0.0143603,87848.0,87838.0,0.15427861]
[1769405815513,0.50927843,87850.0,87839.0,0.85446047]
[1769405815839,0.50927843,87850.0,87840.0,0.15559247]
[1769405816864,0.50927843,87850.0,87841.0,0.15427861]
[1769405817216,0.001,87848.0,87841.0,0.15427861]
[1769405817643,0.01138381,87844.0,87841.0,0.15427861]
[1769405817844,0.01138381,87844.0,87831.0,0.15439017]
[1769405818003,0.50927843,87841.0,87831.0,0.15439017]
[1769405818403,0.01138433,87840.0,87831.0,0.00011156]
[1769405818989,0.50927843,87841.0,87831.0,0.00111156]
[1769405819191,0.0143603,87840.0,87831.0,0.00111156]
[1769405819636,0.52127483,87841.0,87831.0,0.00111156]
[1769405819839,0.55090411,87841.0,87831.0,0.00111156]
[1769405820032,0.50989063,87841.0,87831.0,0.00111156]
[1769405820216,0.50989063,87841.0,87831.0,0.00011156]
[1769405820529,0.50989063,87841.0,87831.0,0.00111156]
[1769405820942,0.50989063,87841.0,87831.0,0.00011156]
[1769405821216,0.01138329,87848.0,87832.0,0.85446047]
[1769405821400,0.02574372,87847.0,87835.0,0.85446047]
[1769405821607,0.02574372,87847.0,87836.0,0.15544475]
[1769405821847,0.01138252,87854.0,87837.0,0.85446047]
[1769405822023,0.50989063,87850.0,87839.0,0.85446047]
[1769405822221,0.17496,87853.0,87840.0,0.15427861]
[1769405822454,0.01138239,87855.0,87840.0,0.15427861]
[1769405822455,0.18634239,87855.0,87841.0,0.15427861]
[1769405822657,0.50989063,87851.0,87841.0,0.15427861]
[1769405823073,0.17496,87855.0,87841.0,0.15427861]
[1769405823242,0.18634213,87857.0,87844.0,0.78933779]
[1769405823482,0.01138226,87856.0,87845.0,0.16248456]
[1769405823683,0.01138239,87855.0,87845.0,0.16248456]
[1769405823906,0.19000278,87862.0,87845.0,0.16248456]
[1769405824128,0.01138083,87867.0,87856.0,0.95182235]
[1769405824338,0.17496,87872.0,87856.0,0.95182235]
[1769405824554,0.01138187,87859.0,87845.0,0.78933779]
[1769405824773,0.01138252,87854.0,87846.0,0.16248456]
[1769405824990,0.06301687,87852.0,87835.0,0.22052]
[1769405825203,0.01138342,87847.0,87836.0,0.02265041]
[1769405825407,0.01138316,87849.0,87836.0,0.16248456]
[1769405825620,0.01138342,87847.0,87836.0,0.16248456]
[1769405825822,0.01138368,87845.0,87836.0,0.16248456]
[1769405826010,0.0143603,87845.0,87836.0,0.16248456]
[1769405826242,0.01138381,87844.0,87836.0,0.16248456]
[1769405826460,0.01138407,87842.0,87836.0,0.16248456]
[1769405826660,0.01138407,87842.0,87823.0,0.17536]
[1769405826661,0.0113842,87841.0,87827.0,0.16248456]
[1769405826792,0.01138394,87843.0,87827.0,0.16248456]
[1769405826994,0.44652836,87846.0,87827.0,0.16248456]
[1769405827196,0.01138459,87838.0,87827.0,0.16248456]
[1769405827403,0.06830833,87837.0,87836.0,0.001]
[1769405827626,0.01144575,87837.0,87836.0,0.00038209]
[1769405827941,0.01138472,87837.0,87823.0,0.0004]
[1769405828309,0.01138472,87837.0,87831.0,0.00111156]
[1769405828509,6.103e-05,87840.0,87831.0,0.00111156]
[1769405828710,0.01138446,87839.0,87831.0,0.00111156]
[1769405828961,0.01138433,87840.0,87831.0,0.00111156]
[1769405829383,0.01138446,87839.0,87831.0,0.00011156]
[1769405829743,0.01138433,87840.0,87831.0,0.00111156]
[1769405830335,0.01138433,87840.0,87831.0,0.00011156]
[1769405830533,0.01138446,87839.0,87831.0,0.00111156]
[1769405830754,0.56681165,87841.0,87831.0,0.00111156]
[1769405830755,0.50989063,87841.0,87831.0,0.00111156]
[1769405831077,0.50989063,87841.0,87831.0,0.00011156]
[1769405831288,0.50989063,87850.0,87834.0,0.78933779]
[1769405831491,0.50989063,87850.0,87837.0,0.16248456]
[1769405831696,0.50989063,87850.0,87839.0,0.78933779]
[1769405831917,0.50989063,87850.0,87840.0,0.16248456]
[1769405832128,0.06835459,87856.0,87840.0,0.16248456]
[1769405832129,0.18634239,87855.0,87840.0,0.16248456]
[1769405832336,0.11380021,87854.0,87844.0,0.16248456]
[1769405832556,0.11380021,87853.0,87844.0,0.16248456]
[1769405832756,0.11380021,87852.0,87844.0,0.16248456]
[1769405832934,0.18634239,87855.0,87844.0,0.16248456]
[1769405833145,0.62375194,87854.0,87844.0,0.16248456]
[1769405833474,0.01138329,87848.0,87836.0,0.16248456]
[1769405833685,0.01138342,87847.0,87836.0,0.16248456]
[1769405833901,0.01138407,87842.0,87831.0,0.00011156]
[1769405834226,0.52127483,87841.0,87831.0,0.00011156]
[1769405834442,0.50989063,87841.0,87831.0,0.00011156]
[1769405834614,0.50989063,87841.0,87832.0,0.95182235]
[1769405834813,0.50989063,87841.0,87833.0,0.16248456]
[1769405835758,0.01138355,87846.0,87833.0,0.16248456]
[1769405835958,0.01138368,87845.0,87833.0,0.16248456]
[1769405836095,0.01138342,87847.0,87833.0,0.16248456]
[1769405836295,0.01138329,87848.0,87833.0,0.16248456]
[1769405836515,0.01138342,87847.0,87833.0,0.16248456]
[1769405836716,0.01138329,87848.0,87833.0,0.16248456]
[1769405836915,0.12525223,87847.0,87833.0,0.16348456]
[1769405837118,0.11386881,87846.0,87833.0,0.16348456]
[1769405837322,0.01138329,87848.0,87833.0,0.16248456]
[1769405837527,0.1148701,87847.0,87833.0,0.16248456]
[1769405837718,0.1138701,87846.0,87833.0,0.16248456]
[1769405838045,0.001,87847.0,87833.0,0.16248456]
[1769405838243,0.11387223,87846.0,87836.0,0.15194348]
[1769405838409,0.001,87847.0,87839.0,0.78279506]
[1769405838611,0.01138239,87855.0,87842.0,0.15194348]
[1769405838814,0.01138226,87856.0,87844.0,0.15194348]
[1769405839022,0.001,87848.0,87844.0,0.15194348]
[1769405839364,0.001,87848.0,87846.0,0.15194348]
[1769405839556,0.06829159,87859.0,87846.0,0.15194348]
[1769405839737,0.01138226,87856.0,87846.0,0.15194348]
[1769405839946,0.001,87856.0,87846.0,0.15194348]
[1769405840563,0.01138213,87857.0,87846.0,0.15194348]
[1769405841181,0.01238187,87859.0,87846.0,0.15194348]
[1769405841394,0.001,87859.0,87846.0,0.15194348]
[1769405841593,0.001,87859.0,87847.0,0.93473854]
[1769405842280,0.01138148,87862.0,87847.0,0.78279506]
[1769405842483,0.01138161,87861.0,87849.0,0.78279506]
[1769405842704,0.01138187,87859.0,87850.0,0.15194348]
[1769405842906,0.001,87856.0,87850.0,0.15194348]
[1769405843286,0.01138187,87859.0,87850.0,0.15194348]
[1769405843484,0.01138278,87852.0,87844.0,0.93473854]
[1769405843961,0.01138278,87852.0,87844.0,0.15194348]
[1769405844166,0.0113829,87851.0,87844.0,0.15194348]
[1769405844316,0.01138278,87852.0,87844.0,0.15194348]
[1769405844868,0.0113829,87851.0,87844.0,0.15194348]
[1769405845068,0.01138303,87850.0,87844.0,0.07034427]
[1769405845271,0.01138368,87845.0,87838.0,0.93473854]
[1769405845544,0.01138368,87845.0,87838.0,0.15194348]
[1769405845746,0.0113842,87841.0,87831.0,0.00011156]
[1769405846158,0.01138394,87843.0,87831.0,0.00011156]
[1769405846392,0.01138407,87842.0,87831.0,0.00011156]
[1769405846757,0.01138394,87843.0,87838.0,0.001]
[1769405847181,0.01138407,87842.0,87838.0,0.001]
[1769405847384,0.01138381,87844.0,87831.0,0.00011156]
[1769405847584,0.01138394,87843.0,87831.0,0.00111156]
[1769405847790,0.01138407,87842.0,87831.0,0.00111156]
[1769405848033,0.0113842,87841.0,87831.0,0.00111156]
[1769405848249,0.01138381,87844.0,87831.0,0.00111156]
[1769405848405,0.01138342,87847.0,87832.0,0.78279506]
[1769405848606,0.01138368,87845.0,87832.0,0.78279506]
[1769405848805,0.01138355,87846.0,87832.0,0.93473854]
[1769405849343,0.01138342,87847.0,87832.0,0.93473854]
[1769405849487,0.01138368,87845.0,87832.0,0.93473854]
[1769405849692,0.01138381,87844.0,87832.0,0.93473854]
[1769405849895,0.01138381,87844.0,87832.0,0.93573854]
[1769405850144,0.01138394,87843.0,87832.0,0.93573854]
[1769405850337,0.01138407,87842.0,87832.0,0.93573854]
[1769405850540,0.01138394,87843.0,87832.0,0.93473854]
[1769405850740,0.01138407,87842.0,87832.0,0.93573854]
[1769405850945,0.01138407,87842.0,87832.0,0.001]
[1769405851146,0.0113842,87841.0,87832.0,0.001]
[1769405851358,0.01138407,87842.0,87832.0,0.001]
[1769405851839,0.01138394,87843.0,87832.0,0.001]
[1769405852039,0.01138394,87843.0,87831.0,0.00011156]
[1769405852192,0.01138394,87843.0,87832.0,0.001]
[1769405852393,0.01138407,87842.0,87832.0,0.01567442]
[1769405852592,0.01138368,87845.0,87832.0,0.01567442]
[1769405852799,0.01138368,87845.0,87832.0,0.01467442]
[1769405852800,0.0113842,87841.0,87832.0,0.01467442]
[1769405853022,0.01138433,87840.0,87832.0,0.01567442]
[1769405853268,0.0113842,87841.0,87832.0,0.01567442]
[1769405853493,0.01138459,87838.0,87831.0,0.00011156]
[1769405853714,0.01138485,87836.0,87831.0,0.00011156]
[1769405853928,0.01138498,87835.0,87832.0,0.001]
[1769405854334,0.01138485,87836.0,87832.0,0.001]
[1769405854781,0.01138498,87835.0,87832.0,0.001]
[1769405854988,0.01138511,87834.0,87831.0,0.00011156]
[1769405855368,0.01138511,87834.0,87831.0,0.00111156]
[1769405855821,0.01138498,87835.0,87831.0,0.00011156]
[1769405856026,0.01138511,87834.0,87831.0,0.00011156]
[1769405857508,0.22874102,87839.0,87831.0,0.00011156]
[1769405857712,0.01138511,87834.0,87831.0,0.00011156]
[1769405858034,0.01138498,87835.0,87831.0,0.00011156]
[1769405858228,0.01138485,87836.0,87831.0,0.00011156]
[1769405858472,0.01138472,87837.0,87831.0,0.00011156]
[1769405859437,0.01138459,87838.0,87831.0,0.00011156]
[1769405859638,0.01138472,87837.0,87831.0,0.00011156]
[1769405859921,0.01138459,87838.0,87831.0,0.00011156]
[1769405860080,0.01138472,87837.0,87831.0,0.00011156]
[1769405860615,0.01138459,87838.0,87831.0,0.00011156]
[1769405861036,0.47127615,87841.0,87831.0,0.00011156]
[1769405861749,0.01138433,87840.0,87831.0,0.00011156]
[1769405862157,0.29667581,87841.0,87831.0,0.00111156]
[1769405862388,0.01138433,87840.0,87831.0,0.00111156]
[1769405862589,0.01138446,87839.0,87831.0,0.00111156]
[1769405862811,0.01138446,87839.0,87831.0,0.00011156]
[1769405863019,0.01138446,87839.0,87831.0,0.00111156]
[1769405863411,0.01138459,87838.0,87831.0,0.00111156]
[1769405863615,0.01138472,87837.0,87831.0,0.00111156]
[1769405863775,0.01138446,87839.0,87831.0,0.00111156]
[1769405863953,0.01138459,87838.0,87831.0,0.00111156]
[1769405864146,0.01138446,87839.0,87831.0,0.00111156]
[1769405864523,0.01138459,87838.0,87831.0,0.00011156]
[1769405864721,0.35359685,87841.0,87831.0,0.00111156]
[1769405864722,0.29667581,87841.0,87831.0,0.00111156]
[1769405865015,0.01138433,87840.0,87831.0,0.00111156]
[1769405865159,0.01138459,87838.0,87831.0,0.00011156]
[1769405865375,0.01138459,87838.0,87831.0,0.00111156]
[1769405865593,0.01138472,87837.0,87831.0,0.00111156]
[1769405866033,0.01138472,87837.0,87831.0,0.00011156]
[1769405866238,0.01138472,87837.0,87831.0,0.00111156]
[1769405866706,0.29667581,87841.0,87831.0,0.00111156]
[1769405866882,0.01138446,87839.0,87831.0,0.00111156]
[1769405867057,0.01138433,87840.0,87831.0,0.00111156]
[1769405867274,0.01138446,87839.0,87831.0,0.00111156]
[1769405867978,0.01138472,87837.0,87831.0,0.00011156]
[1769405868203,0.00105103,87833.0,87831.0,0.00011156]
[1769405868609,0.01138511,87834.0,87831.0,0.00011156]
[1769405869171,0.01138653,87823.0,87811.0,0.14870196]
[1769405869395,0.50994486,87822.0,87812.0,0.00038029]
[1769405870202,0.16334258,87828.0,87812.0,0.95202112]
[1769405870416,0.01138589,87828.0,87812.0,0.80331916]
[1769405870625,0.01138589,87828.0,87813.0,0.14870196]
[1769405871644,0.06831537,87828.0,87813.0,0.14870196]
[1769405871908,0.01138602,87827.0,87813.0,0.14970196]
[1769405872120,0.01138589,87828.0,87813.0,0.14970196]
[1769405872323,0.01644733,87829.0,87813.0,0.95264083]
[1769405872526,0.00506157,87829.0,87813.0,0.95164083]
[1769405872743,0.00506157,87829.0,87814.0,0.14870196]
[1769405872944,0.50994486,87830.0,87814.0,0.95164083]
[1769405873440,0.50994486,87830.0,87816.0,0.80293887]
[1769405873755,0.52133049,87830.0,87818.0,0.14870196]
[1769405873964,0.01138589,87828.0,87818.0,0.14870196]
[1769405874206,0.01138602,87827.0,87818.0,0.14870196]
[1769405874418,0.01138602,87827.0,87813.0,0.001]
[1769405874419,0.01138614,87826.0,87813.0,0.001]
[1769405874621,0.0113864,87824.0,87812.0,0.00038029]
[1769405874823,0.50994486,87822.0,87814.0,0.001]
[1769405875449,0.50994486,87822.0,87812.0,0.00038029]
[1769405875571,0.52133152,87822.0,87813.0,0.001]
[1769405875929,0.50994486,87822.0,87813.0,0.001]
[1769405876088,0.50994486,87822.0,87812.0,0.00038029]
[1769405876295,0.01138653,87823.0,87814.0,0.001]
[1769405876493,0.0113864,87824.0,87814.0,0.001]
[1769405876691,0.0113864,87824.0,87809.0,0.0004]
[1769405876692,0.01138653,87823.0,87809.0,0.0004]
[1769405876894,0.16703766,87818.0,87809.0,0.00046372]
[1769405877096,0.01138757,87815.0,87809.0,0.00046372]
[1769405877324,0.17842497,87817.0,87809.0,0.00046372]
[1769405877496,0.00369508,87813.0,87809.0,0.00046372]
[1769405877697,0.01508304,87812.0,87809.0,0.00046372]
[1769405878439,0.01138796,87812.0,87809.0,0.00046372]
[1769405878640,0.01138809,87811.0,87805.0,0.0004]
[1769405878807,0.01138835,87809.0,87808.0,0.00014019]
[1769405879010,0.16703766,87813.0,87808.0,0.00014019]
[1769405879255,0.17842549,87813.0,87808.0,0.00014019]
[1769405879694,0.01138809,87811.0,87808.0,0.00014019]
[1769405879903,0.00369508,87810.0,87808.0,0.00014019]
[1769405880108,0.0113877,87814.0,87810.0,0.0004]
[1769405880301,0.01138757,87815.0,87810.0,0.0004]
[1769405880522,0.01138757,87815.0,87808.0,0.00014019]
[1769405881007,0.01138653,87823.0,87808.0,0.00014019]
[1769405881240,0.5216104,87830.0,87810.0,0.80293887]
[1769405881450,0.01138614,87826.0,87812.0,0.14870196]
[1769405881686,0.01138627,87825.0,87812.0,0.14870196]
[1769405881901,0.0113864,87824.0,87812.0,0.14870196]
[1769405882310,0.01138718,87818.0,87808.0,0.00014019]
[1769405883133,0.06062972,87820.0,87808.0,0.00014019]
[1769405883134,0.01138705,87819.0,87808.0,0.00014019]
[1769405883339,0.01138731,87817.0,87808.0,0.00014019]
[1769405883959,0.01138731,87817.0,87808.0,0.00114019]
[1769405884165,0.015082,87820.0,87808.0,0.00114019]
[1769405884374,0.01138705,87819.0,87808.0,0.00114019]
[1769405884577,0.0569348,87820.0,87808.0,0.00114019]
[1769405884755,0.0569348,87820.0,87804.0,0.15506148]
[1769405884955,0.0569348,87820.0,87804.0,0.14596772]
[1769405885143,0.05013417,87821.0,87804.0,0.13687396]
[1769405885345,0.01138692,87820.0,87804.0,0.95515514]
[1769405885568,0.01138692,87820.0,87805.0,0.15506148]
[1769405885772,0.51022477,87822.0,87807.0,0.15506148]
[1769405885947,0.56257027,87822.0,87809.0,0.82224479]
[1769405886149,0.56257027,87822.0,87810.0,0.02277644]
[1769405886751,0.001,87821.0,87810.0,0.02277644]
[1769405887064,0.56257027,87822.0,87810.0,0.02277644]
[1769405887636,0.01138679,87821.0,87808.0,0.15506148]
[1769405888026,0.57395693,87822.0,87808.0,0.15506148]
[1769405888428,0.01138679,87821.0,87808.0,0.15506148]
[1769405888660,0.11228742,87821.0,87808.0,0.15506148]
[1769405889537,0.01138705,87819.0,87808.0,0.15506148]
[1769405889744,0.01138744,87816.0,87804.0,0.82224479]
[1769405889948,0.01138731,87817.0,87803.0,0.33002148]
[1769405890153,0.01138744,87816.0,87803.0,0.33002148]
[1769405890385,0.5216126,87813.0,87803.0,0.33002148]
[1769405890612,0.01138796,87812.0,87803.0,0.17496]
[1769405891016,0.58288394,87813.0,87803.0,0.17496]
[1769405891292,0.01138796,87812.0,87803.0,0.17496]
[1769405891873,0.01138796,87812.0,87804.0,0.001]
[1769405892260,0.01138809,87811.0,87804.0,0.001]
[1769405892582,0.63982313,87813.0,87791.0,0.15546148]
[1769405892583,0.02098913,87803.0,87791.0,0.15546148]
[1769405892784,0.51022477,87802.0,87792.0,0.00054022]
[1769405893169,0.01138939,87801.0,87792.0,0.00054022]
[1769405893398,0.01138965,87799.0,87792.0,0.00054022]
[1769405893734,0.51022477,87802.0,87792.0,0.00054022]
[1769405893934,0.08141784,87801.0,87792.0,0.00054022]
[1769405894141,0.51022477,87802.0,87792.0,0.00054022]
[1769405894344,0.52161403,87802.0,87792.0,0.00054022]
[1769405894549,0.01138939,87801.0,87792.0,0.00054022]
[1769405894981,0.01138939,87801.0,87792.0,0.00154022]
[1769405895415,0.01138939,87801.0,87792.0,0.00054022]
[1769405895626,0.52161403,87802.0,87792.0,0.00154022]
[1769405895828,0.01138939,87801.0,87792.0,0.00154022]
[1769405896002,0.01138939,87801.0,87791.0,0.0070017]
[1769405896449,0.01138939,87801.0,87788.0,0.01572402]
[1769405896450,0.01138965,87799.0,87788.0,0.01572402]
[1769405896650,0.01138991,87797.0,87788.0,0.0004]
[1769405896859,0.01923854,87797.0,87788.0,0.0004]
[1769405897036,0.01139017,87795.0,87788.0,0.0004]
[1769405897485,0.01139017,87795.0,87786.0,0.0004]
[1769405897486,0.01139042,87793.0,87786.0,0.0004]
[1769405897679,0.01139055,87792.0,87786.0,0.00054025]
[1769405897883,0.00784863,87790.0,87786.0,0.00054025]
[1769405898100,0.04446845,87789.0,87786.0,0.00054025]
[1769405898307,0.16483905,87788.0,87786.0,0.00054025]
[1769405898723,0.01139068,87791.0,87771.0,0.175]
[1769405898724,0.01139198,87781.0,87771.0,0.175]
[1769405898877,0.01139172,87783.0,87771.0,0.175]
[1769405899276,0.07661941,87783.0,87771.0,0.175]
[1769405899882,0.08801113,87783.0,87771.0,0.1752098]
[1769405900265,0.15699042,87787.0,87772.0,0.82057426]
[1769405900459,0.01139159,87784.0,87772.0,0.80642936]
[1769405900669,0.00013978,87784.0,87771.0,0.1752098]
[1769405900864,0.00013978,87784.0,87774.0,0.80642936]
[1769405902127,0.01139017,87795.0,87776.0,0.14709152]
[1769405902128,0.0113903,87794.0,87776.0,0.14709152]
[1769405902333,0.0113903,87794.0,87779.0,0.80642936]
[1769405902492,0.01139017,87795.0,87780.0,0.95352088]
[1769405902695,0.01139017,87795.0,87782.0,0.80642936]
[1769405903082,0.01139017,87795.0,87783.0,0.95352088]
[1769405903293,0.01139042,87793.0,87783.0,0.95352088]
[1769405903430,0.01139042,87793.0,87783.0,0.14709152]
[1769405903834,0.01139055,87792.0,87779.0,0.01475102]
[1769405904061,0.01139055,87792.0,87779.0,0.9682719]
[1769405904241,0.52161519,87793.0,87779.0,0.95366066]
[1769405904470,0.52161519,87793.0,87780.0,0.82088374]
[1769405904471,0.51022477,87793.0,87780.0,0.82088374]
[1769405904628,0.51022477,87793.0,87780.0,0.80642936]
[1769405904825,0.05694962,87797.0,87779.0,0.1472313]
[1769405904826,0.51022477,87800.0,87783.0,0.14709152]
[1769405905029,0.51022477,87800.0,87786.0,0.80642936]
[1769405905250,0.51022477,87800.0,87789.0,0.80642936]
[1769405905960,0.52161429,87800.0,87789.0,0.80642936]
[1769405906397,0.51022477,87800.0,87789.0,0.80642936]
[1769405906546,0.58858151,87800.0,87789.0,0.80642936]
[1769405907170,0.57819199,87800.0,87789.0,0.80642936]
[1769405907587,0.58858151,87800.0,87789.0,0.80642936]
[1769405907901,0.3806089,87800.0,87789.0,0.80642936]
[1769405908108,0.36921938,87800.0,87789.0,0.80642936]
[1769405908304,0.3806089,87800.0,87789.0,0.80642936]
[1769405909074,0.31364168,87800.0,87789.0,0.80642936]
[1769405909283,0.01138965,87799.0,87789.0,0.80642936]
[1769405909492,0.30225216,87800.0,87789.0,0.80642936]
[1769405909710,0.01138965,87799.0,87789.0,0.80642936]
[1769405910300,0.31264168,87800.0,87789.0,0.80642936]
[1769405910508,0.001,87799.0,87789.0,0.80642936]
[1769405911340,0.30125216,87800.0,87789.0,0.80642936]
[1769405911500,0.33974991,87800.0,87789.0,0.80642936]
[1769405913394,0.1683789,87808.0,87789.0,0.95046242]
[1769405913687,0.001,87799.0,87792.0,0.95721679]
[1769405914098,0.01138874,87806.0,87792.0,0.95721679]
[1769405914306,0.01138861,87807.0,87792.0,0.95721679]
[1769405914503,0.001,87800.0,87792.0,0.95721679]
[1769405915002,0.001,87800.0,87781.0,0.14403306]
[1769405915236,0.001,87800.0,87784.0,0.81318373]
[1769405915451,0.01138887,87805.0,87780.0,0.51022477]
[1769405915452,0.01138887,87805.0,87786.0,0.95721679]
[1769405915667,0.19364633,87807.0,87788.0,0.81318373]
[1769405915893,0.09700167,87806.0,87789.0,0.14403306]
[1769405916096,0.10839041,87806.0,87789.0,0.95721679]
[1769405916300,0.01138887,87805.0,87789.0,0.95721679]
[1769405916731,0.10839041,87806.0,87789.0,0.95721679]
[1769405916941,0.10939041,87806.0,87791.0,0.81318373]
[1769405917119,0.09499218,87805.0,87791.0,0.81318373]
[1769405917765,0.09599218,87805.0,87791.0,0.81318373]
[1769405918172,0.10638105,87805.0,87791.0,0.81318373]
[1769405918369,0.09499218,87805.0,87791.0,0.81318373]
[1769405919113,0.10638105,87805.0,87791.0,0.81318373]
[1769405919309,0.09499218,87805.0,87791.0,0.81318373]
[1769405919546,0.10638105,87805.0,87791.0,0.81318373]
[1769405919740,0.10638105,87805.0,87784.0,0.81318373]
[1769405919741,0.52161416,87801.0,87784.0,0.81318373]
[1769405919938,0.52161416,87801.0,87785.0,0.95721679]
[1769405920146,0.01138952,87800.0,87785.0,0.95721679]
[1769405920549,0.01138965,87799.0,87785.0,0.95721679]
[1769405920711,0.01138952,87800.0,87785.0,0.95721679]
[1769405921081,0.01138965,87799.0,87785.0,0.95721679]
[1769405921279,0.52161494,87795.0,87779.0,0.95735657]
[1769405921505,0.01139004,87796.0,87779.0,0.95735657]
[1769405921628,0.51022477,87790.0,87779.0,0.95735657]
[1769405922270,0.51022477,87790.0,87780.0,0.01536275]
[1769405922469,0.51022477,87790.0,87779.0,0.95735657]
[1769405922678,0.16051762,87795.0,87780.0,0.01536722]
[1769405922869,0.0712899,87794.0,87780.0,0.01536722]
[1769405923308,0.03191916,87795.0,87780.0,0.01536722]
[1769405923729,0.02052899,87795.0,87780.0,0.01536722]
[1769405925432,0.001,87795.0,87781.0,0.81318373]
[1769405925639,0.001,87795.0,87784.0,0.14403306]
[1769405925876,0.001,87795.0,87784.0,0.15939956]
[1769405926618,0.01138978,87798.0,87784.0,0.15939956]
[1769405926838,0.51022477,87800.0,87784.0,0.15939956]
[1769405927036,0.001,87795.0,87784.0,0.15939956]
[1769405927453,0.01138965,87799.0,87784.0,0.15939956]
[1769405927775,0.001,87798.0,87784.0,0.15939956]
[1769405928265,0.52161429,87800.0,87784.0,0.15939956]
[1769405928486,0.52161429,87800.0,87785.0,0.15939937]
[1769405928693,0.01238965,87799.0,87785.0,0.15939937]
[1769405928890,0.01138978,87798.0,87785.0,0.15939937]
[1769405929050,0.01138991,87797.0,87785.0,0.15939937]
[1769405929409,0.01139004,87796.0,87785.0,0.15939937]
[1769405929614,0.01139055,87792.0,87785.0,0.14403306]
[1769405929815,0.01139055,87792.0,87778.0,0.79305651]
[1769405930021,0.01153074,87792.0,87778.0,0.79305651]
[1769405930227,0.01139068,87791.0,87778.0,0.79305651]
[1769405930434,0.01139081,87790.0,87778.0,0.79305651]
[1769405930975,0.52161558,87790.0,87778.0,0.79305651]
[1769405932225,0.01139094,87789.0,87778.0,0.79305651]
[1769405932580,0.52161558,87790.0,87778.0,0.79305651]
[1769405932981,0.51022477,87790.0,87778.0,0.79305651]
[1769405934574,0.51022477,87790.0,87777.0,0.14403306]
[1769405934802,0.01139094,87789.0,87777.0,0.14403306]